fUST/lending_fUST_20251018
["ID","MTS","AMOUNT","RATE_DAILY","PERIOD"]
[391696168,1760732929021,150.5,0.00028353,120]
[391696169,1760732929473,150.5,0.00028343,120]
[391696170,1760732929936,150.5,0.00028333,120]
[391696208,1760733032355,-400.0,0.0002739,2]
[391696210,1760733032365,-508.95456817,0.00028148,2]
[391696216,1760733032411,-1217.94141922,0.00028148,2]
[391696218,1760733032421,-1131.53310056,0.00028151,2]
[391696220,1760733032430,-859.67249872,0.00028153,2]
[391696222,1760733032439,-1200.0,0.0002825,2]
[391696224,1760733032449,-300.0,0.00028251,2]
[391696226,1760733032458,-300.0,0.00028251,2]
[391696228,1760733032467,-300.0,0.00028251,2]
[391696230,1760733032476,-300.0,0.00028251,2]
[391696232,1760733032485,-50000.0,0.00028252,2]
[391696234,1760733032494,-1008.3596926,0.00028253,2]
[391696235,1760733032503,-3044.68613052,0.00028253,2]
[391696237,1760733032512,-252.45740863,0.00028325,2]
[391696239,1760733032521,-22478.3512268,0.00028343,2]
[391696241,1760733032532,-191.51,0.00028343,10]
[391696243,1760733032543,-159.6,0.00028343,10]
[391696245,1760733032552,-500.0,0.00028352,2]
[391696247,1760733032561,-500.0,0.00028352,5]
[391696249,1760733032571,-500.0,0.00028352,5]
[391696251,1760733032582,-500.0,0.00028352,5]
[391696253,1760733032591,-500.0,0.00028352,5]
[391696255,1760733032600,-500.0,0.00028352,5]
[391696257,1760733032611,-2316.23,0.00028352,2]
[391696259,1760733032620,-82784.90486119,0.00028353,2]
[391696262,1760733032639,-286.81356417,0.00028353,2]
[391696283,1760733038307,-163.97118609,0.00028048,2]
[391696285,1760733038318,-96755.09138964,0.00028353,2]
[391696287,1760733038328,-181.84346336,0.00028362,2]
[391696289,1760733038337,-282.10784377,0.00028362,2]
[391696291,1760733038347,-370000.0,0.00028363,2]
[391696293,1760733038357,-499.98,0.00028363,10]
[391696295,1760733038367,-500.0,0.00028373,5]
[391696297,1760733038376,-267.5780067,0.00028433,2]
[391696299,1760733038386,-2082.5841703,0.00028433,2]
[391696301,1760733038395,-829.8651866,0.00028433,2]
[391696303,1760733038405,-38621.0934989,0.00028433,2]
[391696305,1760733038414,-199.0,0.00028462,7]
[391696307,1760733038423,-500.0,0.00028473,5]
[391696309,1760733038432,-515.84,0.000285,2]
[391696311,1760733038441,-1205.51,0.000285,2]
[391696313,1760733038451,-250.16976181,0.0002876,2]
[391696315,1760733038460,-1512.02829167,0.0002878,2]
[391696317,1760733038469,-1008.35969256,0.00028836,2]
[391696319,1760733038479,-300.0,0.000289,2]
[391696321,1760733038488,-1000.0,0.00029021,5]
[391696323,1760733038497,-300.0,0.00029041,30]
[391696326,1760733038507,-300.0,0.00029041,30]
[391696329,1760733038516,-300.0,0.00029041,30]
[391696333,1760733038525,-300.0,0.00029041,30]
[391696336,1760733038540,-300.0,0.00029041,30]
[391696338,1760733038551,-300.0,0.00029041,30]
[391696340,1760733038560,-300.0,0.00029041,30]
[391696342,1760733038569,-300.0,0.00029041,30]
[391696344,1760733038580,-300.0,0.00029041,30]
[391696346,1760733038590,-300.0,0.00029041,30]
[391696348,1760733038599,-300.0,0.00029041,30]
[391696350,1760733038610,-300.0,0.00029041,30]
[391696352,1760733038620,-300.0,0.00029041,30]
[391696354,1760733038629,-300.0,0.00029041,30]
[391696356,1760733038638,-300.0,0.00029041,30]
[391696358,1760733038648,-600.0,0.00029041,30]
[391696360,1760733038657,-202.398731,0.00029096,60]
[391696362,1760733038666,-151.0,0.000291,18]
[391696365,1760733038676,-2316.23,0.00029173,4]
[391696366,1760733038685,-151.0,0.000293,15]
[391696369,1760733038695,-151.0,0.000294,120]
[391696371,1760733038704,-1008.35969256,0.00029419,2]
[391696373,1760733038714,-151.0,0.000295,14]
[391696375,1760733038722,-150.0,0.00029549,7]
[391696377,1760733038731,-600.65298288,0.00029568,5]
[391696379,1760733038740,-151.0,0.000296,10]
[391696381,1760733038750,-2824.33586129,0.000297,7]
[391696383,1760733038759,-175.0,0.00029787,120]
[391696385,1760733038768,-151.0,0.000298,18]
[391696387,1760733038777,-3044.6861305,0.0002983,2]
[391696389,1760733038786,-165.67,0.00029836,5]
[391696391,1760733038795,-156.13829817,0.00029876,7]
[391696393,1760733038806,-280.8,0.000299,2]
[391696395,1760733038815,-151.0,0.000299,16]
[391696397,1760733038824,-150.0,0.00029914,2]
[391696399,1760733038834,-859.67249872,0.00029943,2]
[391696401,1760733038843,-22478.3512268,0.00029985,2]
[391696403,1760733038853,-2316.23,0.00029995,6]
[391696405,1760733038862,-7218.34,0.0003,7]
[391696407,1760733038871,-151.0,0.0003,16]
[391696409,1760733038880,-151.0,0.0003,20]
[391696411,1760733038889,-151.0,0.0003,19]
[391696413,1760733038899,-151.999999,0.0003,120]
[391696415,1760733038909,-1005.30348227,0.0003,120]
[391696417,1760733038918,-200.0,0.0003,120]
[391696419,1760733038928,-1008.35969256,0.00030001,2]
[391696421,1760733038937,-21546.32396303,0.00030026,3]
[391696423,1760733038947,-252.543512,0.000301,2]
[391696425,1760733038956,-252.543512,0.000301,3]
[391696426,1760733038967,-164.3714,0.000301,2]
[391696429,1760733038977,-164.3714,0.000301,3]
[391696430,1760733038987,-22478.3512268,0.00030126,2]
[391696432,1760733038996,-155.335,0.00030135,2]
[391696435,1760733039006,-500.0,0.00030136,2]
[391696436,1760733039016,-493.35256579,0.00030136,5]
[391696439,1760733039027,-425.42125107,0.00030136,5]
[391696441,1760733039038,-354.00179248,0.00030136,5]
[391696443,1760733039048,-459.7016458,0.00030136,5]
[391696445,1760733039057,-475.4351268,0.00030136,5]
[391696447,1760733039067,-482.98365661,0.00030136,5]
[391696449,1760733039076,-500.0,0.00030136,5]
[391696451,1760733039089,-500.0,0.00030136,5]
[391696453,1760733039099,-468.73960114,0.00030136,5]
[391696455,1760733039108,-500.0,0.00030136,5]
[391696457,1760733039118,-483.13332328,0.00030136,5]
[391696459,1760733039128,-500.0,0.00030136,5]
[391696461,1760733039139,-500.0,0.00030136,5]
[391696463,1760733039148,-500.0,0.00030136,5]
[391696465,1760733039158,-500.0,0.00030136,5]
[391696467,1760733039169,-259.74703421,0.00030136,5]
[391696469,1760733039178,-435.30952801,0.00030136,5]
[391696471,1760733039188,-342.16880715,0.00030136,5]
[391696472,1760733039196,-500.0,0.00030136,5]
[391696473,1760733039206,-209.68266061,0.00030136,5]
[391696474,1760733039214,-500.0,0.00030136,5]
[391696475,1760733039224,-500.0,0.00030136,5]
[391696476,1760733039233,-251.43436926,0.00030136,5]
[391696477,1760733039333,-200.93975559,0.00030136,5]
[391696478,1760733039342,-439.53236673,0.00030136,5]
[391696479,1760733039351,-423.63687579,0.00030136,5]
[391696480,1760733039360,-210.73,0.00030136,5]
[391696481,1760733039369,-285.71597608,0.00030136,5]
[391696482,1760733039378,-500.0,0.00030136,5]
[391696484,1760733039387,-361.01794298,0.00030136,5]
[391696485,1760733039397,-500.0,0.00030136,5]
[391696487,1760733039406,-500.0,0.00030136,5]
[391696489,1760733039417,-231.22562723,0.00030136,5]
[391696491,1760733039427,-509.54967558,0.00030136,5]
[391696493,1760733039436,-500.0,0.00030136,5]
[391696495,1760733039445,-474.10786275,0.00030136,5]
[391696497,1760733039455,-417.95665522,0.00030136,5]
[391696499,1760733039464,-500.0,0.00030136,5]
[391696501,1760733039474,-408.67433325,0.00030136,5]
[391696503,1760733039483,-500.0,0.00030136,5]
[391696505,1760733039493,-500.0,0.00030136,5]
[391696507,1760733039503,-500.0,0.00030136,5]
[391696509,1760733039512,-500.0,0.00030136,5]
[391696511,1760733039522,-185.91007802,0.00030136,5]
[391696513,1760733039535,-500.0,0.00030136,5]
[391696515,1760733039544,-407.57384418,0.00030136,5]
[391696517,1760733039553,-500.0,0.00030136,5]
[391696519,1760733039564,-500.0,0.00030136,5]
[391696521,1760733039573,-500.0,0.00030136,5]
[391696523,1760733039585,-402.75955966,0.00030136,5]
[391696525,1760733039594,-500.0,0.00030136,5]
[391696527,1760733039604,-500.0,0.00030136,5]
[391696529,1760733039612,-224.53791345,0.00030136,5]
[391696531,1760733039622,-500.0,0.00030136,5]
[391696533,1760733039631,-500.0,0.00030136,5]
[391696535,1760733039641,-500.0,0.00030136,5]
[391696537,1760733039651,-500.0,0.00030136,5]
[391696539,1760733039660,-460.74013514,0.00030136,5]
[391696541,1760733039670,-500.0,0.00030136,5]
[391696543,1760733039679,-388.10508508,0.00030136,5]
[391696545,1760733039688,-584.87762443,0.00030136,5]
[391696547,1760733039698,-276.83159229,0.00030136,5]
[391696549,1760733039707,-229.57182068,0.00030136,5]
[391696551,1760733039716,-516.78308928,0.00030136,5]
[391696553,1760733039726,-500.0,0.00030136,5]
[391696555,1760733039735,-500.0,0.00030136,5]
[391696557,1760733039744,-507.23127164,0.00030136,5]
[391696559,1760733039753,-485.22206402,0.00030136,5]
[391696561,1760733039762,-500.0,0.00030136,5]
[391696563,1760733039771,-467.9571574,0.00030136,5]
[391696565,1760733039780,-500.0,0.00030136,5]
[391696567,1760733039790,-500.0,0.00030136,5]
[391696569,1760733039799,-300.11102066,0.00030136,5]
[391696571,1760733039808,-479.55921149,0.00030136,5]
[391696573,1760733039817,-377.32552098,0.00030136,5]
[391696575,1760733039827,-500.0,0.00030136,5]
[391696576,1760733039837,-500.0,0.00030136,5]
[391696579,1760733039847,-500.0,0.00030136,5]
[391696580,1760733039856,-464.98328277,0.00030136,5]
[391696583,1760733039866,-500.0,0.00030136,5]
[391696585,1760733039875,-500.0,0.00030136,5]
[391696587,1760733039884,-500.0,0.00030136,5]
[391696589,1760733039894,-462.45210013,0.00030136,5]
[391696591,1760733039903,-485.96784427,0.00030136,5]
[391696593,1760733039913,-500.0,0.00030136,5]
[391696595,1760733039924,-487.15248547,0.00030136,5]
[391696597,1760733039933,-500.0,0.00030136,5]
[391696599,1760733039942,-507.6632003,0.00030136,5]
[391696601,1760733039952,-500.0,0.00030136,5]
[391696603,1760733039962,-500.0,0.00030136,5]
[391696605,1760733039971,-500.0,0.00030136,5]
[391696608,1760733039981,-500.0,0.00030136,5]
[391696611,1760733039991,-500.0,0.00030136,5]
[391696613,1760733040001,-500.0,0.00030136,5]
[391696615,1760733040013,-399.22218434,0.00030136,5]
[391696619,1760733040030,-500.0,0.00030136,5]
[391696623,1760733040046,-500.0,0.00030136,5]
[391696626,1760733040060,-520.06685534,0.00030136,5]
[391696629,1760733040075,-355.78,0.00030136,5]
[391696632,1760733040092,-469.41750197,0.00030136,5]
[391696635,1760733040108,-500.0,0.00030136,5]
[391696638,1760733040124,-178.01772736,0.00030136,5]
[391696642,1760733040139,-326.17511294,0.00030136,5]
[391696645,1760733040153,-291.8866253,0.00030136,5]
[391696647,1760733040168,-479.51694423,0.00030136,5]
[391696650,1760733040182,-500.0,0.00030136,5]
[391696652,1760733040194,-500.0,0.00030136,5]
[391696655,1760733040209,-500.0,0.00030136,5]
[391696657,1760733040224,-199.05965689,0.00030136,5]
[391696660,1760733040238,-500.0,0.00030136,5]
[391696663,1760733040255,-500.0,0.00030136,5]
[391696665,1760733040270,-500.0,0.00030136,5]
[391696668,1760733040281,-500.0,0.00030136,5]
[391696670,1760733040292,-501.15883875,0.00030136,5]
[391696673,1760733040310,-446.56165766,0.00030136,5]
[391696675,1760733040324,-500.0,0.00030136,5]
[391696678,1760733040336,-500.0,0.00030136,5]
[391696680,1760733040350,-500.0,0.00030136,5]
[391696682,1760733040362,-500.0,0.00030136,5]
[391696685,1760733040374,-500.0,0.00030136,5]
[391696687,1760733040386,-500.0,0.00030136,5]
[391696689,1760733040399,-500.0,0.00030136,5]
[391696692,1760733040412,-500.0,0.00030136,5]
[391696694,1760733040427,-179.52131968,0.00030136,5]
[391696696,1760733040440,-500.0,0.00030136,5]
[391696699,1760733040452,-500.0,0.00030136,5]
[391696701,1760733040465,-245.441691,0.00030136,5]
[391696704,1760733040478,-808.37,0.00030136,5]
[391696706,1760733040490,-500.0,0.00030136,5]
[391696708,1760733040502,-500.0,0.00030136,5]
[391696711,1760733040515,-500.0,0.00030136,5]
[391696713,1760733040527,-500.0,0.00030136,5]
[391696715,1760733040543,-500.0,0.00030136,2]
[391696718,1760733040556,-502.27781088,0.00030136,5]
[391696720,1760733040568,-530.78,0.00030136,5]
[391696722,1760733040581,-500.0,0.00030136,5]
[391696725,1760733040594,-500.0,0.00030136,5]
[391696727,1760733040608,-500.0,0.00030136,5]
[391696729,1760733040619,-500.0,0.00030136,5]
[391696732,1760733040632,-478.53950307,0.00030136,5]
[391696734,1760733040644,-404.13288569,0.00030136,5]
[391696736,1760733040656,-500.0,0.00030136,2]
[391696739,1760733040669,-500.0,0.00030136,5]
[391696741,1760733040681,-460.0,0.00030136,5]
[391696743,1760733040695,-500.0,0.00030136,5]
[391696746,1760733040707,-500.0,0.00030136,5]
[391696748,1760733040720,-638.46501618,0.00030136,5]
[391696751,1760733040732,-500.0,0.00030136,5]
[391696753,1760733040744,-500.0,0.00030136,5]
[391696755,1760733040756,-735.76,0.00030136,5]
[391696757,1760733040768,-536.07559032,0.00030136,5]
[391696760,1760733040780,-500.0,0.00030136,5]
[391696762,1760733040793,-500.0,0.00030136,5]
[391696765,1760733040805,-166.93145608,0.00030136,5]
[391696767,1760733040818,-500.0,0.00030136,5]
[391696769,1760733040831,-500.0,0.00030136,5]
[391696772,1760733040844,-500.0,0.00030136,5]
[391696774,1760733040856,-500.0,0.00030136,5]
[391696776,1760733040868,-500.0,0.00030136,5]
[391696779,1760733040884,-1000.0,0.00030136,2]
[391696781,1760733040896,-468.38457103,0.00030136,5]
[391696783,1760733040905,-500.0,0.00030136,5]
[391696785,1760733040914,-500.0,0.00030136,5]
[391696787,1760733040924,-500.0,0.00030136,5]
[391696789,1760733040933,-500.0,0.00030136,5]
[391696807,1760733041078,-500.0,0.00030136,5]
[391696810,1760733041099,-500.0,0.00030136,5]
[391696812,1760733041108,-563.23,0.00030136,5]
[391696814,1760733041118,-500.0,0.00030136,5]
[391696816,1760733041127,-500.0,0.00030136,5]
[391696818,1760733041137,-500.0,0.00030136,5]
[391696820,1760733041146,-500.0,0.00030136,5]
[391696822,1760733041156,-527.04772485,0.00030136,5]
[391696824,1760733041165,-1000.0,0.00030136,120]
[391696826,1760733041174,-500.0,0.00030136,5]
[391696828,1760733041184,-396.69597402,0.00030136,5]
[391696830,1760733041193,-500.0,0.00030136,5]
[391696832,1760733041203,-161.92745763,0.00030136,5]
[391696834,1760733041212,-500.0,0.00030136,5]
[391696836,1760733041221,-500.0,0.00030136,5]
[391696838,1760733041230,-500.0,0.00030136,5]
[391696840,1760733041240,-398.46060811,0.00030136,5]
[391696842,1760733041250,-500.0,0.00030136,5]
[391696844,1760733041259,-500.0,0.00030136,5]
[391696846,1760733041268,-500.0,0.00030136,5]
[391696848,1760733041277,-500.0,0.00030136,5]
[391696850,1760733041286,-500.0,0.00030136,5]
[391696852,1760733041295,-500.0,0.00030136,5]
[391696854,1760733041303,-500.0,0.00030136,5]
[391696856,1760733041312,-535.51,0.00030136,5]
[391696858,1760733041321,-500.0,0.00030136,5]
[391696860,1760733041330,-588.11987074,0.00030136,5]
[391696862,1760733041339,-260.80393802,0.00030136,5]
[391696864,1760733041349,-281.44631974,0.00030136,5]
[391696866,1760733041358,-161.26747102,0.00030136,5]
[391696868,1760733041367,-234.93040372,0.00030136,5]
[391696870,1760733041376,-500.0,0.00030136,5]
[391696872,1760733041385,-377.51085792,0.00030136,5]
[391696874,1760733041394,-638.85255016,0.00030136,5]
[391696876,1760733041403,-500.0,0.00030136,5]
[391696878,1760733041412,-500.0,0.00030136,5]
[391696880,1760733041421,-500.0,0.00030136,5]
[391696882,1760733041431,-1290.91,0.00030136,5]
[391696884,1760733041439,-500.0,0.00030136,5]
[391696886,1760733041448,-484.51153699,0.00030136,5]
[391696888,1760733041457,-467.81015037,0.00030136,5]
[391696890,1760733041467,-251.47035702,0.00030136,5]
[391696892,1760733041476,-500.0,0.00030136,5]
[391696894,1760733041485,-505.77485848,0.00030136,5]
[391696896,1760733041495,-448.34212836,0.00030136,5]
[391696898,1760733041504,-408.79336775,0.00030136,5]
[391696900,1760733041513,-500.0,0.00030136,5]
[391696902,1760733041523,-500.0,0.00030136,5]
[391696904,1760733041534,-500.0,0.00030136,5]
[391696906,1760733041543,-500.0,0.00030136,5]
[391696908,1760733041552,-500.0,0.00030136,5]
[391696910,1760733041560,-500.0,0.00030136,5]
[391696912,1760733041569,-534.45702368,0.00030136,5]
[391696914,1760733041579,-500.0,0.00030136,5]
[391696916,1760733041588,-500.0,0.00030136,5]
[391696918,1760733041597,-500.0,0.00030136,5]
[391696920,1760733041606,-500.0,0.00030136,5]
[391696922,1760733041615,-500.0,0.00030136,5]
[391696924,1760733041625,-504.19952306,0.00030136,5]
[391696926,1760733041633,-500.0,0.00030136,5]
[391696928,1760733041643,-500.0,0.00030136,5]
[391696930,1760733041652,-500.0,0.00030136,5]
[391696931,1760733041662,-500.0,0.00030136,5]
[391696934,1760733041671,-500.0,0.00030136,5]
[391696936,1760733041680,-500.0,0.00030136,5]
[391696938,1760733041689,-500.0,0.00030136,5]
[391696939,1760733041698,-500.0,0.00030136,5]
[391696942,1760733041707,-500.0,0.00030136,5]
[391696944,1760733041716,-500.0,0.00030136,5]
[391696946,1760733041726,-500.0,0.00030136,5]
[391696948,1760733041735,-509.28287903,0.00030136,5]
[391696950,1760733041744,-460.92473218,0.00030136,5]
[391696951,1760733041754,-500.0,0.00030136,5]
[391696954,1760733041763,-481.80518084,0.00030136,5]
[391696956,1760733041772,-500.0,0.00030136,5]
[391696958,1760733041783,-172.87034334,0.00030136,5]
[391696959,1760733041792,-455.83571943,0.00030136,5]
[391696962,1760733041802,-500.0,0.00030136,5]
[391696964,1760733041811,-500.0,0.00030136,5]
[391696966,1760733041820,-500.0,0.00030136,5]
[391696968,1760733041829,-500.0,0.00030136,5]
[391696970,1760733041839,-1115.36,0.00030136,5]
[391696972,1760733041849,-480.63831984,0.00030136,5]
[391696974,1760733041859,-500.0,0.00030136,5]
[391696976,1760733041868,-500.0,0.00030136,5]
[391696978,1760733041877,-500.0,0.00030136,5]
[391696980,1760733041886,-500.0,0.00030136,5]
[391696982,1760733041894,-500.0,0.00030136,5]
[391696984,1760733041903,-191.0545598,0.00030136,5]
[391696986,1760733041913,-742.93,0.00030136,5]
[391696988,1760733041922,-500.0,0.00030136,5]
[391696990,1760733041931,-500.0,0.00030136,5]
[391696992,1760733041939,-500.0,0.00030136,5]
[391696994,1760733041949,-500.0,0.00030136,5]
[391696995,1760733041957,-500.0,0.00030136,5]
[391696997,1760733041967,-500.0,0.00030136,5]
[391696999,1760733041976,-500.0,0.00030136,5]
[391697001,1760733041986,-500.0,0.00030136,5]
[391697003,1760733041995,-500.0,0.00030136,5]
[391697005,1760733042004,-500.0,0.00030136,5]
[391697007,1760733042013,-663.48,0.00030136,5]
[391697009,1760733042023,-610.66871962,0.00030136,5]
[391697011,1760733042032,-500.0,0.00030136,5]
[391697013,1760733042041,-500.0,0.00030136,5]
[391697015,1760733042050,-458.53709856,0.00030136,5]
[391697017,1760733042060,-500.0,0.00030136,5]
[391697019,1760733042070,-461.33153271,0.00030136,5]
[391697021,1760733042079,-500.0,0.00030136,5]
[391697023,1760733042088,-500.0,0.00030136,5]
[391697025,1760733042098,-483.1599679,0.00030136,5]
[391697027,1760733042107,-500.0,0.00030136,5]
[391697029,1760733042117,-500.0,0.00030136,5]
[391697032,1760733042127,-241.93203075,0.00030136,7]
[391697034,1760733042136,-455.44869325,0.00030136,5]
[391697036,1760733042146,-500.0,0.00030136,5]
[391697037,1760733042155,-908.04,0.00030136,5]
[391697040,1760733042164,-500.0,0.00030136,5]
[391697042,1760733042173,-500.0,0.00030136,5]
[391697044,1760733042183,-500.0,0.00030136,5]
[391697046,1760733042193,-500.0,0.00030136,5]
[391697048,1760733042202,-220.43362058,0.00030136,5]
[391697050,1760733042212,-500.0,0.00030136,5]
[391697051,1760733042220,-257.14384278,0.00030136,5]
[391697053,1760733042230,-548.86,0.00030136,5]
[391697056,1760733042239,-242.92856182,0.00030136,5]
[391697057,1760733042249,-500.0,0.00030136,5]
[391697059,1760733042259,-500.0,0.00030136,5]
[391697062,1760733042268,-500.0,0.00030136,5]
[391697063,1760733042277,-486.8777075,0.00030136,5]
[391697065,1760733042287,-516.36,0.00030136,5]
[391697068,1760733042296,-500.0,0.00030136,5]
[391697069,1760733042306,-500.0,0.00030136,5]
[391697071,1760733042315,-500.0,0.00030136,5]
[391697073,1760733042324,-969.58,0.00030136,5]
[391697076,1760733042335,-368.02530719,0.00030136,5]
[391697077,1760733042344,-1160.61,0.00030136,5]
[391697079,1760733042353,-500.0,0.00030136,5]
[391697082,1760733042364,-469.74572438,0.00030136,5]
[391697083,1760733042373,-500.0,0.00030136,5]
[391697085,1760733042382,-500.0,0.00030136,5]
[391697087,1760733042391,-391.07605559,0.00030136,5]
[391697089,1760733042400,-500.0,0.00030136,5]
[391697091,1760733042409,-500.0,0.00030136,5]
[391697093,1760733042418,-500.0,0.00030136,5]
[391697095,1760733042427,-500.0,0.00030136,5]
[391697097,1760733042437,-282.09703335,0.00030136,5]
[391697099,1760733042446,-500.0,0.00030136,5]
[391697101,1760733042455,-500.0,0.00030136,5]
[391697103,1760733042465,-500.0,0.00030136,5]
[391697105,1760733042474,-500.0,0.00030136,5]
[391697107,1760733042484,-500.0,0.00030136,5]
[391697109,1760733042493,-328.67776562,0.00030136,5]
[391697111,1760733042503,-500.0,0.00030136,5]
[391697113,1760733042512,-398.60839282,0.00030136,5]
[391697116,1760733042521,-500.0,0.00030136,5]
[391697118,1760733042533,-500.0,0.00030136,5]
[391697120,1760733042543,-482.35901417,0.00030136,5]
[391697122,1760733042553,-444.83912253,0.00030136,5]
[391697124,1760733042564,-228.77216229,0.00030136,5]
[391697126,1760733042574,-506.86832007,0.00030136,5]
[391697128,1760733042584,-209.76325302,0.00030136,5]
[391697130,1760733042594,-500.0,0.00030136,5]
[391697132,1760733042604,-162.24838079,0.00030136,5]
[391697134,1760733042614,-202.01459874,0.00030136,5]
[391697136,1760733042623,-500.0,0.00030136,5]
[391697138,1760733042632,-500.0,0.00030136,5]
[391697140,1760733042642,-506.58618314,0.00030136,5]
[391697142,1760733042652,-255.0,0.00030136,30]
[391697143,1760733042661,-500.0,0.00030136,5]
[391697146,1760733042671,-252.16026241,0.00030136,5]
[391697148,1760733042680,-500.30876859,0.00030136,5]
[391697150,1760733042690,-1440.81,0.00030136,5]
[391697151,1760733042699,-202.44059991,0.00030136,5]
[391697153,1760733042708,-500.0,0.00030136,5]
[391697155,1760733042717,-500.0,0.00030136,5]
[391697157,1760733042726,-521.61,0.00030136,5]
[391697159,1760733042736,-500.0,0.00030136,5]
[391697161,1760733042745,-500.0,0.00030136,5]
[391697163,1760733042754,-500.0,0.00030136,5]
[391697165,1760733042763,-500.0,0.00030136,5]
[391697167,1760733042772,-500.0,0.00030136,5]
[391697169,1760733042781,-500.0,0.00030136,5]
[391697171,1760733042791,-500.0,0.00030136,5]
[391697173,1760733042800,-500.0,0.00030136,5]
[391697175,1760733042809,-500.0,0.00030136,5]
[391697177,1760733042819,-500.0,0.00030136,5]
[391697179,1760733042828,-151.0,0.00030136,30]
[391697181,1760733042837,-217.0,0.00030136,30]
[391697183,1760733042846,-525.76,0.00030136,5]
[391697185,1760733042856,-500.78092682,0.00030136,5]
[391697187,1760733042865,-500.0,0.00030136,5]
[391697189,1760733042874,-500.0,0.00030136,5]
[391697191,1760733042883,-285.99549451,0.00030136,5]
[391697193,1760733042893,-501.03354292,0.00030136,5]
[391697196,1760733042903,-412.21671968,0.00030136,5]
[391697198,1760733042912,-151.0,0.00030136,30]
[391697201,1760733042921,-343.66992808,0.00030136,5]
[391697204,1760733042931,-494.38274997,0.00030136,5]
[391697206,1760733042941,-426.51214454,0.00030136,5]
[391697209,1760733042950,-151.0,0.00030136,30]
[391697212,1760733042959,-500.0,0.00030136,5]
[391697214,1760733042968,-500.0,0.00030136,5]
[391697216,1760733042977,-500.0,0.00030136,5]
[391697218,1760733042986,-500.0,0.00030136,5]
[391697220,1760733042995,-347.88930331,0.00030136,5]
[391697222,1760733043006,-500.0,0.00030136,5]
[391697226,1760733043016,-500.0,0.00030136,5]
[391697231,1760733043026,-478.60690266,0.00030136,5]
[391697234,1760733043035,-497.66934603,0.00030136,5]
[391697237,1760733043047,-500.0,0.00030136,5]
[391697239,1760733043057,-500.0,0.00030136,5]
[391697241,1760733043066,-500.0,0.00030136,5]
[391697243,1760733043076,-500.0,0.00030136,5]
[391697245,1760733043085,-530.2450791,0.00030136,5]
[391697246,1760733043095,-500.0,0.00030136,5]
[391697247,1760733043104,-500.0,0.00030136,5]
[391697248,1760733043113,-500.0,0.00030136,5]
[391697250,1760733043122,-507.38985075,0.00030136,5]
[391697252,1760733043132,-500.0,0.00030136,5]
[391697253,1760733043140,-500.0,0.00030136,5]
[391697254,1760733043150,-502.23185552,0.00030136,5]
[391697255,1760733043159,-395.30567954,0.00030136,5]
[391697257,1760733043259,-302.67169736,0.00030136,5]
[391697259,1760733043268,-912.61,0.00030136,2]
[391697261,1760733043278,-500.0,0.00030136,5]
[391697263,1760733043287,-647.86383128,0.00030136,5]
[391697265,1760733043296,-500.0,0.00030136,5]
[391697267,1760733043310,-500.0,0.00030136,5]
[391697269,1760733043319,-500.0,0.00030136,5]
[391697271,1760733043329,-500.0,0.00030136,5]
[391697273,1760733043338,-500.0,0.00030136,5]
[391697275,1760733043347,-500.0,0.00030136,5]